lending/lending_fUSD_20250501
["ID","MTS","AMOUNT","RATE_DAILY","PERIOD"]
[359579518,1746141041244,-797.0,0.0003063,2]
[359579519,1746141041253,-557.405,0.0003063,2]
[359579520,1746141041262,-826.59,0.00030685,2]
[359579521,1746141041271,-374.0,0.000308,2]
[359579522,1746141041280,-764.0,0.000308,2]
[359579523,1746141041289,-1273.0,0.000308,2]
[359579524,1746141041298,-150.0,0.0003093,2]
[359579525,1746141041307,-600.0,0.00031,2]
[359579526,1746141041316,-166.4,0.00031213,2]
[359579527,1746141041325,-259.88499225,0.00031224,15]
[359579528,1746141041334,-150.0,0.00031233,2]
[359579529,1746141041343,-351.92,0.00031233,2]
[359579530,1746141041353,-150.0,0.00031233,2]
[359579531,1746141041362,-300.0,0.00031233,2]
[359579532,1746141041371,-318.85,0.00031506,2]
[359579533,1746141041380,-897.2,0.00031507,2]
[359579534,1746141041390,-206.0,0.0003165,2]
[359579535,1746141041399,-150.0,0.00031723,2]
[359579536,1746141041408,-223.0315306,0.00031969,2]
[359579537,1746141041417,-1000.0,0.00032031,2]
[359579538,1746141041426,-239.00626639,0.00032137,2]
[359579539,1746141041435,-799.44470157,0.00032259,2]
[359579540,1746141041444,-166.4,0.00032501,2]
[359579541,1746141041453,-150.0,0.00032516,2]
[359579542,1746141041463,-200.0,0.00032644,2]
[359579543,1746141041472,-200.0,0.00032644,2]
[359579544,1746141041481,-200.0,0.00032644,2]
[359579545,1746141041491,-200.0,0.00032644,2]
[359579546,1746141041500,-200.0,0.00032644,2]
[359579547,1746141041510,-200.0,0.00032644,2]
[359579548,1746141041521,-300.53,0.00032664,2]
[359579549,1746141041531,-206.0,0.0003281,2]
[359579550,1746141041541,-1000.0,0.00032876,2]
[359579551,1746141041551,-1000.0,0.00032876,2]
[359579552,1746141041560,-1000.0,0.00032876,2]
[359579553,1746141041569,-1000.0,0.00032876,2]
[359579554,1746141041579,-1000.0,0.00032876,2]
[359579555,1746141041588,-1000.0,0.00032876,2]
[359579556,1746141041598,-318.85,0.00032876,2]
[359579557,1746141041607,-300.0,0.00032877,6]
[359579558,1746141041617,-176.59,0.00032877,30]
[359579559,1746141041626,-897.2,0.00032877,2]
[359579560,1746141041635,-826.59,0.00032949,2]
[359579561,1746141041644,-1060.87909843,0.00033,2]
[359579562,1746141041654,-650.0,0.00033,2]
[359579563,1746141041663,-150.0,0.00033151,2]
[359579564,1746141041673,-1000.0,0.00033165,2]
[359579565,1746141041683,-150.0,0.00033309,2]
[359579566,1746141041692,-200.0,0.00033326,2]
[359579567,1746141041701,-231.28369723,0.00033338,2]
[359579568,1746141041710,-351.92,0.00033425,2]
[359579569,1746141041720,-351.92,0.00033425,2]
[359579570,1746141041729,-150.0,0.00033425,2]
[359579571,1746141041738,-797.0,0.0003363,2]
[359579572,1746141041748,-455.93,0.00033671,2]
[359579573,1746141041757,-801.26,0.00033671,2]
[359579574,1746141041766,-455.93,0.00033671,2]
[359579575,1746141041775,-801.26,0.00033671,2]
[359579576,1746141041785,-801.26,0.00033671,2]
[359579577,1746141041794,-455.93,0.00033671,2]
[359579578,1746141041803,-801.26,0.00033671,2]
[359579579,1746141041812,-455.93,0.00033671,2]
[359579580,1746141041821,-801.26,0.00033671,2]
[359579581,1746141041831,-1499.44,0.00033671,2]
[359579582,1746141041841,-166.4,0.00033789,2]
[359579583,1746141041850,-451.39,0.00033863,2]
[359579584,1746141041860,-162.16,0.00033863,2]
[359579585,1746141041869,-150.0,0.00033863,2]
[359579586,1746141041879,-351.92,0.00033863,2]
[359579587,1746141041888,-451.39,0.00033863,2]
[359579588,1746141041898,-162.16,0.00033863,2]
[359579589,1746141041906,-150.0,0.00033863,2]
[359579590,1746141041915,-351.92,0.00033863,2]
[359579591,1746141041924,-451.39,0.00033863,2]
[359579592,1746141041934,-162.16,0.00033863,2]
[359579593,1746141041943,-351.92,0.00033863,2]
[359579594,1746141041953,-150.0,0.00033863,2]
[359579595,1746141041965,-451.39,0.00033863,2]
[359579596,1746141041974,-162.16,0.00033863,2]
[359579597,1746141041983,-351.92,0.00033863,2]
[359579598,1746141041992,-150.0,0.00033863,2]
[359579599,1746141042002,-451.39,0.00033863,2]
[359579600,1746141042013,-162.16,0.00033863,2]
[359579601,1746141042022,-150.0,0.00033863,2]
[359579602,1746141042031,-351.92,0.00033863,2]
[359579603,1746141042043,-911.83,0.00033863,2]
[359579604,1746141042052,-239.2,0.00033863,2]
[359579605,1746141042062,-150.0,0.00033863,2]
[359579606,1746141042071,-351.92,0.00033863,2]
[359579607,1746141042080,-351.92,0.00033863,2]
[359579608,1746141042090,-150.0,0.00033863,2]
[359579609,1746141042099,-150.0,0.00033863,2]
[359579610,1746141042109,-351.92,0.00033863,2]
[359579611,1746141042118,-351.92,0.00033863,2]
[359579612,1746141042127,-150.0,0.00033863,2]
[359579613,1746141042137,-150.0,0.00033863,2]
[359579614,1746141042146,-351.92,0.00033863,2]
[359579615,1746141042157,-351.92,0.00033863,2]
[359579616,1746141042166,-150.0,0.00033863,2]
[359579617,1746141042176,-150.0,0.00033863,2]
[359579618,1746141042185,-351.92,0.00033863,2]
[359579619,1746141042195,-351.92,0.00033863,2]
[359579620,1746141042204,-150.0,0.00033863,2]
[359579621,1746141042214,-150.0,0.00033945,2]
[359579622,1746141042224,-150.0,0.00033945,2]
[359579623,1746141042233,-150.0,0.00033945,2]
[359579624,1746141042242,-150.0,0.00033945,2]
[359579625,1746141042252,-150.0,0.00033945,2]
[359579626,1746141042261,-150.0,0.00033945,2]
[359579627,1746141042270,-150.75,0.00033945,2]
[359579628,1746141042280,-206.0,0.0003398,2]
[359579629,1746141042289,-154.63,0.00034,2]
[359579630,1746141042298,-799.44470157,0.00034024,2]
[359579631,1746141042307,-259.88499225,0.00034055,15]
[359579632,1746141042318,-150.0,0.00034102,2]
[359579633,1746141042327,-318.85,0.00034246,2]
[359579634,1746141042336,-152.0,0.00034414,3]
[359579635,1746141042346,-150.0,0.00034548,10]
[359579636,1746141042355,-150.0,0.00034562,2]
[359579637,1746141042365,-687.2532006,0.00034616,4]
[359579638,1746141042375,-150.0,0.00034664,2]
[359579639,1746141042384,-150.0,0.00034677,2]
[359579640,1746141042394,-239.84119403,0.00034707,2]
[359579641,1746141042403,-150.0,0.00034813,2]
[359579642,1746141042413,-754.47259851,0.00034877,5]
[359579643,1746141042422,-151.0,0.00034877,7]
[359579644,1746141042432,-151.962676,0.00034877,7]
[359579645,1746141042441,-150.0,0.0003488,2]
[359579646,1746141042451,-150.0,0.00034895,2]
[359579647,1746141042461,-700.0,0.00035,2]
[359579648,1746141042470,-888.0,0.00035,5]
[359579649,1746141042479,-3546.91074393,0.00035,3]
[359579650,1746141042488,-151.0,0.00035068,7]
[359579651,1746141042498,-368.95,0.00035068,2]
[359579652,1746141042507,-166.4,0.00035077,2]
[359579653,1746141042517,-150.0,0.00035109,2]
[359579654,1746141042528,-206.0,0.0003514,2]
[359579655,1746141042770,-151.0,0.00035173,7]
[359579656,1746141042780,-281.740845,0.00035173,7]
[359579657,1746141042790,-151.0,0.00035173,7]
[359579658,1746141042800,-151.0,0.00035173,7]
[359579659,1746141042810,-210.073877,0.00035173,7]
[359579660,1746141042820,-210.073877,0.00035173,7]
[359579661,1746141042829,-150.0,0.00035192,2]
[359579662,1746141042839,-239.00626639,0.00035197,2]
[359579663,1746141042849,-826.59,0.00035213,2]
[359579664,1746141042859,-3599.36,0.000353,2]
[359579665,1746141042868,-150.0,0.00035323,2]
[359579666,1746141042878,-150.0,0.00035342,2]
[359579667,1746141042887,-3599.36,0.000354,2]
[359579668,1746141042896,-3599.36,0.000354,2]
[359579669,1746141042903,-257.204037,0.000354,7]
[359579670,1746141042910,-151.0,0.000354,7]
[359579671,1746141042918,-151.0,0.000354,7]
[359579672,1746141042925,-163.242479,0.000354,7]
[359579673,1746141042933,-151.0,0.000354,7]
[359579674,1746141042940,-2110.0,0.00035438,2]
[359579675,1746141042950,-151.0,0.00035506,7]
[359579676,1746141042961,-268.508866,0.00035506,7]
[359579677,1746141042972,-151.0,0.00035506,7]
[359579678,1746141042981,-199.247676,0.00035506,7]
[359579679,1746141042991,-151.0,0.00035506,7]
[359579680,1746141043002,-398.54451874,0.00035516,2]
[359579681,1746141043011,-156.93342412,0.00035516,2]
[359579682,1746141043020,-1985.34498578,0.00035516,2]
[359579683,1746141043029,-1041.55218793,0.00035606,2]
[359579684,1746141043040,-300.3824,0.00035616,7]
[359579685,1746141043049,-151.0,0.00035616,7]
[359579686,1746141043059,-450.0,0.00035616,3]
[359579687,1746141043069,-151.0,0.00035616,7]
[359579688,1746141043078,-152.698789,0.00035616,7]
[359579689,1746141043088,-152.698789,0.00035616,7]
[359579690,1746141043097,-283.23952419,0.00035616,11]
[359579691,1746141043107,-151.0,0.00035616,7]
[359579692,1746141043116,-530.0,0.00035616,11]
[359579693,1746141043126,-151.0,0.00035616,7]
[359579694,1746141043136,-151.0,0.00035616,7]
[359579695,1746141043145,-151.0,0.00035616,7]
[359579696,1746141043156,-151.0,0.00035616,7]
[359579697,1746141043165,-151.0,0.00035616,7]
[359579698,1746141043175,-450.0,0.00035616,11]
[359579699,1746141043184,-151.0,0.00035616,7]
[359579700,1746141043194,-430.01230737,0.00035616,11]
[359579701,1746141043204,-450.0,0.00035616,11]
[359579702,1746141043213,-151.0,0.00035616,7]
[359579703,1746141043223,-450.0,0.00035616,11]
[359579704,1746141043232,-364.21772956,0.00035616,11]
[359579705,1746141043242,-493.94,0.00035616,11]
[359579706,1746141043252,-500.0,0.00035616,11]
[359579707,1746141043262,-500.0,0.00035616,11]
[359579708,1746141043271,-624.88142714,0.00035616,11]
[359579709,1746141043280,-450.0,0.00035616,11]
[359579710,1746141043290,-470.0,0.00035616,11]
[359579711,1746141043299,-450.0,0.00035616,11]
[359579712,1746141043308,-450.0,0.00035616,11]
[359579713,1746141043318,-450.0,0.00035616,11]
[359579715,1746141043327,-450.0,0.00035616,11]
[359579716,1746141043336,-450.0,0.00035616,11]
[359579717,1746141043346,-517.42484704,0.00035616,11]
[359579718,1746141043355,-470.0,0.00035616,11]
[359579719,1746141043364,-450.0,0.00035616,11]
[359579720,1746141043374,-613.96,0.00035616,11]
[359579721,1746141043383,-500.0,0.00035616,11]
[359579722,1746141043393,-500.0,0.00035616,11]
[359579723,1746141043402,-500.0,0.00035616,11]
[359579724,1746141043412,-500.0,0.00035616,11]
[359579725,1746141043422,-507.77604178,0.00035616,11]
[359579726,1746141043431,-450.0,0.00035616,11]
[359579727,1746141043441,-451.73,0.00035616,11]
[359579728,1746141043450,-450.0,0.00035616,11]
[359579729,1746141043460,-1485.28,0.00035616,11]
[359579730,1746141043469,-450.0,0.00035616,11]
[359579732,1746141043478,-529.91644247,0.00035616,11]
[359579733,1746141043488,-450.0,0.00035616,11]
[359579735,1746141043497,-470.0,0.00035616,11]
[359579736,1746141043507,-470.0,0.00035616,11]
[359579737,1746141043517,-450.0,0.00035616,11]
[359579738,1746141043528,-450.0,0.00035616,11]
[359579739,1746141043538,-470.0,0.00035616,11]
[359579740,1746141043548,-450.0,0.00035616,11]
[359579741,1746141043558,-637.94,0.00035616,11]
[359579742,1746141043568,-566.17898396,0.00035616,11]
[359579743,1746141043578,-1051.09,0.00035616,11]
[359579744,1746141043588,-450.0,0.00035616,11]
[359579745,1746141043598,-470.0,0.00035616,11]
[359579746,1746141043607,-470.0,0.00035616,11]
[359579747,1746141043617,-470.0,0.00035616,11]
[359579748,1746141043627,-485.98,0.00035616,11]
[359579749,1746141043637,-450.0,0.00035616,11]
[359579750,1746141043647,-525.06502007,0.00035616,11]
[359579751,1746141043656,-450.0,0.00035616,11]
[359579752,1746141043666,-470.0,0.00035616,11]
[359579753,1746141043675,-450.0,0.00035616,11]
[359579754,1746141043685,-470.0,0.00035616,11]
[359579755,1746141043694,-470.0,0.00035616,11]
[359579756,1746141043705,-450.0,0.00035616,11]
[359579757,1746141043715,-500.0,0.00035616,11]
[359579758,1746141043725,-500.0,0.00035616,11]
[359579759,1746141043734,-500.0,0.00035616,11]
[359579760,1746141043744,-500.0,0.00035616,11]
[359579761,1746141043754,-519.87605263,0.00035616,11]
[359579762,1746141043764,-550.3813052,0.00035616,11]
[359579763,1746141043774,-1057.75,0.00035616,11]
[359579764,1746141043783,-450.0,0.00035616,11]
[359579765,1746141043793,-450.0,0.00035616,11]
[359579766,1746141043802,-470.0,0.00035616,11]
[359579767,1746141043812,-521.83174376,0.00035616,11]
[359579768,1746141043821,-450.0,0.00035616,11]
[359579769,1746141043831,-450.0,0.00035616,11]
[359579771,1746141043841,-450.0,0.00035616,11]
[359579773,1746141043851,-524.86176293,0.00035616,11]
[359579775,1746141043860,-470.0,0.00035616,11]
[359579777,1746141043869,-561.20918129,0.00035616,11]
[359579779,1746141043879,-541.10265667,0.00035616,11]
[359579781,1746141043888,-507.17289959,0.00035616,11]
[359579783,1746141043898,-575.81,0.00035616,11]
[359579784,1746141043908,-934.72,0.00035616,11]
[359579785,1746141043917,-530.01065887,0.00035616,11]
[359579786,1746141043926,-450.0,0.00035616,11]
[359579787,1746141043936,-450.0,0.00035616,11]
[359579788,1746141043945,-450.0,0.00035616,11]
[359579789,1746141043955,-470.0,0.00035616,11]
[359579790,1746141043968,-450.0,0.00035616,11]
[359579791,1746141043977,-522.9194497,0.00035616,11]
[359579792,1746141043986,-511.14124875,0.00035616,11]
[359579793,1746141043996,-470.0,0.00035616,11]
[359579794,1746141044007,-470.0,0.00035616,11]
[359579795,1746141044017,-470.0,0.00035616,11]
[359579796,1746141044026,-470.0,0.00035616,11]
[359579797,1746141044037,-470.0,0.00035616,11]
[359579798,1746141044047,-470.0,0.00035616,11]
[359579799,1746141044057,-450.0,0.00035616,11]
[359579800,1746141044067,-450.0,0.00035616,11]
[359579801,1746141044076,-540.83,0.00035616,11]
[359579802,1746141044086,-239.77931832,0.00035616,11]
[359579803,1746141044095,-621.12,0.00035616,11]
[359579804,1746141044105,-470.0,0.00035616,11]
[359579805,1746141044114,-450.0,0.00035616,11]
[359579806,1746141044123,-540.6070837,0.00035616,11]
[359579807,1746141044133,-470.0,0.00035616,11]
[359579808,1746141044142,-541.96374485,0.00035616,11]
[359579809,1746141044151,-450.0,0.00035616,11]
[359579810,1746141044161,-450.0,0.00035616,11]
[359579811,1746141044171,-450.0,0.00035616,11]
[359579812,1746141044180,-511.56,0.00035616,11]
[359579813,1746141044190,-450.0,0.00035616,11]
[359579814,1746141044199,-470.0,0.00035616,11]
[359579815,1746141044210,-470.0,0.00035616,11]
[359579816,1746141044220,-450.0,0.00035616,11]
[359579817,1746141044231,-470.0,0.00035616,11]
[359579818,1746141044241,-450.0,0.00035616,11]
[359579819,1746141044251,-470.0,0.00035616,11]
[359579820,1746141044260,-450.0,0.00035616,11]
[359579821,1746141044271,-580.73,0.00035616,11]
[359579822,1746141044280,-470.0,0.00035616,11]
[359579823,1746141044290,-674.77,0.00035616,11]
[359579824,1746141044299,-578.93769598,0.00035616,11]
[359579825,1746141044308,-450.0,0.00035616,11]
[359579826,1746141044317,-2054.77,0.00035616,11]
[359579827,1746141044327,-470.0,0.00035616,11]
[359579828,1746141044336,-1060.9,0.00035616,11]
[359579829,1746141044345,-500.0,0.00035616,11]
[359579830,1746141044355,-450.0,0.00035616,11]
[359579831,1746141044364,-470.0,0.00035616,11]
[359579832,1746141044374,-470.0,0.00035616,11]
[359579833,1746141044383,-470.0,0.00035616,11]
[359579834,1746141044392,-470.0,0.00035616,11]
[359579835,1746141044402,-470.0,0.00035616,7]
[359579836,1746141044411,-470.0,0.00035616,11]
[359579837,1746141044420,-508.21049277,0.00035616,11]
[359579838,1746141044430,-470.0,0.00035616,11]
[359579839,1746141044439,-450.0,0.00035616,11]
[359579840,1746141044448,-450.0,0.00035616,11]
[359579841,1746141044457,-450.0,0.00035616,11]
[359579842,1746141044467,-450.0,0.00035616,11]
[359579843,1746141044476,-577.34273769,0.00035616,11]
[359579844,1746141044486,-470.0,0.00035616,11]
[359579845,1746141044495,-470.0,0.00035616,11]
[359579846,1746141044504,-450.0,0.00035616,11]
[359579847,1746141044514,-500.0,0.00035616,11]
[359579848,1746141044524,-472.73,0.00035616,11]
[359579849,1746141044534,-470.0,0.00035616,11]
[359579850,1746141044543,-450.0,0.00035616,11]
[359579851,1746141044552,-276.09261851,0.00035616,11]
[359579852,1746141044562,-500.0,0.00035616,11]
[359579853,1746141044571,-500.0,0.00035616,11]
[359579854,1746141044581,-500.0,0.00035616,11]
[359579855,1746141044590,-500.0,0.00035616,11]
[359579856,1746141044600,-500.0,0.00035616,11]
[359579857,1746141044609,-500.0,0.00035616,11]
[359579858,1746141044619,-500.0,0.00035616,11]
[359579859,1746141044629,-500.0,0.00035616,11]
[359579860,1746141044638,-500.0,0.00035616,11]
[359579861,1746141044648,-500.0,0.00035616,11]
[359579862,1746141044657,-536.48277515,0.00035616,11]
[359579863,1746141044668,-532.8,0.00035616,11]
[359579864,1746141044678,-470.0,0.00035616,11]
[359579865,1746141044688,-539.72512155,0.00035616,11]
[359579866,1746141044697,-450.0,0.00035616,11]
[359579867,1746141044707,-470.0,0.00035616,11]
[359579868,1746141044716,-450.0,0.00035616,11]
[359579869,1746141044725,-470.0,0.00035616,11]
[359579870,1746141044734,-470.0,0.00035616,11]
[359579871,1746141044744,-470.0,0.00035616,11]
[359579872,1746141044754,-450.0,0.00035616,11]
[359579873,1746141044764,-616.47,0.00035616,11]
[359579874,1746141044774,-539.52263152,0.00035616,11]
[359579875,1746141044783,-450.0,0.00035616,11]
[359579876,1746141044793,-160.41285126,0.00035616,11]
[359579877,1746141044803,-495.72,0.00035616,11]
[359579878,1746141044812,-450.0,0.00035616,11]
[359579879,1746141044822,-450.0,0.00035616,11]
[359579880,1746141044831,-470.0,0.00035616,11]
[359579881,1746141044841,-450.0,0.00035616,11]
[359579882,1746141044851,-170.90300038,0.00035616,11]
[359579883,1746141044860,-541.63772701,0.00035616,11]
[359579884,1746141044870,-450.0,0.00035616,11]
[359579885,1746141044879,-1233.93,0.00035616,11]
[359579886,1746141044889,-450.0,0.00035616,11]
[359579887,1746141044898,-450.0,0.00035616,7]
[359579888,1746141044908,-496.63,0.00035616,11]
[359579889,1746141044918,-527.77,0.00035616,11]
[359579890,1746141044927,-419.89136213,0.00035616,11]
[359579891,1746141044936,-470.0,0.00035616,11]
[359579892,1746141044946,-401.86906816,0.00035616,11]
[359579893,1746141044955,-708.39,0.00035616,11]
[359579894,1746141044968,-450.0,0.00035616,11]
[359579895,1746141044977,-450.0,0.00035616,11]
[359579896,1746141044986,-566.88,0.00035616,11]
[359579897,1746141044995,-860.69,0.00035616,11]
[359579898,1746141045005,-470.0,0.00035616,11]
[359579899,1746141045015,-888.78,0.00035616,11]
[359579900,1746141045025,-470.0,0.00035616,11]
[359579901,1746141045035,-363.34795656,0.00035616,11]
[359579902,1746141045045,-470.0,0.00035616,11]
[359579903,1746141045055,-450.0,0.00035616,11]
[359579904,1746141045064,-450.0,0.00035616,11]
[359579905,1746141045073,-450.0,0.00035616,2]
[359579906,1746141045082,-450.0,0.00035616,11]
[359579907,1746141045092,-509.39,0.00035616,11]
[359579908,1746141045101,-470.0,0.00035616,11]
[359579909,1746141045110,-450.0,0.00035616,11]
[359579910,1746141045120,-692.14,0.00035616,11]
[359579911,1746141045129,-450.0,0.00035616,11]
[359579912,1746141045139,-450.0,0.00035616,11]
[359579913,1746141045148,-1075.77,0.00035616,11]
[359579914,1746141045157,-450.0,0.00035616,11]
[359579915,1746141045166,-450.0,0.00035616,11]
[359579916,1746141045176,-450.0,0.00035616,2]
[359579917,1746141045185,-450.0,0.00035616,11]
[359579918,1746141045195,-470.0,0.00035616,11]
[359579919,1746141045205,-508.74659321,0.00035616,11]
[359579920,1746141045214,-450.0,0.00035616,11]
[359579921,1746141045224,-470.0,0.00035616,11]
[359579922,1746141045233,-406.42275344,0.00035616,11]
[359579923,1746141045242,-982.42,0.00035616,11]
[359579924,1746141045254,-450.0,0.00035616,11]
[359579925,1746141045263,-470.0,0.00035616,11]
[359579926,1746141045273,-450.0,0.00035616,11]
[359579927,1746141045282,-500.0,0.00035616,11]
[359579928,1746141045291,-530.69799756,0.00035616,11]
[359579929,1746141045300,-470.0,0.00035616,11]
[359579930,1746141045310,-514.56565839,0.00035616,11]
[359579931,1746141045319,-470.0,0.00035616,11]
[359579932,1746141045328,-470.0,0.00035616,11]
[359579933,1746141045338,-450.0,0.00035616,11]
[359579934,1746141045348,-450.0,0.00035616,11]
[359579935,1746141045358,-470.0,0.00035616,11]
[359579936,1746141045368,-450.0,0.00035616,11]
[359579937,1746141045377,-450.0,0.00035616,11]
[359579938,1746141045387,-483.06,0.00035616,11]
[359579939,1746141045397,-470.0,0.00035616,11]
[359579940,1746141045406,-450.0,0.00035616,11]
[359579941,1746141045415,-450.0,0.00035616,11]
[359579942,1746141045424,-556.93128772,0.00035616,11]
[359579943,1746141045433,-408.54688901,0.00035616,11]
[359579944,1746141045442,-450.0,0.00035616,11]
[359579945,1746141045451,-470.0,0.00035616,11]
[359579946,1746141045461,-450.0,0.00035616,11]
[359579947,1746141045471,-549.22,0.00035616,11]
[359579948,1746141045480,-470.0,0.00035616,11]
[359579949,1746141045490,-535.38615794,0.00035616,11]
[359579950,1746141045499,-450.0,0.00035616,11]
[359579951,1746141045508,-470.0,0.00035616,11]
[359579952,1746141045518,-450.0,0.00035616,11]
[359579953,1746141045530,-803.53,0.00035616,11]
[359579954,1746141045539,-450.0,0.00035616,11]
[359579955,1746141045548,-519.64,0.00035616,11]
[359579956,1746141045558,-470.0,0.00035616,11]
[359579957,1746141045567,-506.22,0.00035616,11]
[359579958,1746141045576,-450.0,0.00035616,11]
[359579959,1746141045586,-470.0,0.00035616,11]
[359579960,1746141045595,-470.0,0.00035616,11]
[359579961,1746141045604,-470.0,0.00035616,11]
[359579962,1746141045613,-450.0,0.00035616,11]
[359579963,1746141045623,-1809.19,0.00035616,11]
[359579964,1746141045633,-450.0,0.00035616,11]
[359579965,1746141045642,-469.3,0.00035616,11]
[359579966,1746141045652,-450.0,0.00035616,11]
[359579967,1746141045662,-1162.27,0.00035616,11]
[359579968,1746141045671,-506.81321354,0.00035616,11]
[359579969,1746141045681,-815.53,0.00035616,11]
[359579970,1746141045691,-450.0,0.00035616,11]
[359579971,1746141045700,-470.0,0.00035616,11]
[359579972,1746141045709,-254.11,0.00035616,11]
[359579973,1746141045719,-470.0,0.00035616,11]
[359579974,1746141045728,-585.9,0.00035616,11]
[359579975,1746141045737,-470.0,0.00035616,11]
[359579976,1746141045747,-733.99,0.00035616,11]
[359579977,1746141045757,-517.74829216,0.00035616,11]
[359579978,1746141045766,-450.0,0.00035616,11]
[359579979,1746141045776,-470.0,0.00035616,11]
[359579980,1746141045785,-472.77,0.00035616,11]
[359579981,1746141045794,-450.0,0.00035616,11]
[359579982,1746141045804,-547.8991961,0.00035616,11]
[359579983,1746141045813,-318.85,0.00035616,2]
[359579984,1746141045822,-554.68,0.00035616,11]
[359579985,1746141045833,-450.0,0.00035616,11]
[359579986,1746141045842,-512.71650542,0.00035616,11]
[359579987,1746141045852,-1087.08,0.00035616,11]
[359579988,1746141045860,-450.0,0.00035616,11]
[359579989,1746141045870,-450.0,0.00035616,11]
[359579990,1746141045879,-686.46,0.00035616,11]
[359579991,1746141045888,-450.0,0.00035616,11]
[359579992,1746141045898,-450.0,0.00035616,11]
[359579993,1746141045908,-1096.876645,0.00035616,11]
[359579994,1746141045918,-521.66034455,0.00035616,11]
[359579995,1746141045927,-470.0,0.00035616,11]
[359579996,1746141045937,-2075.49,0.00035616,11]
[359579997,1746141045947,-275.25771566,0.00035616,11]
[359579998,1746141045956,-798.04,0.00035616,11]
[359579999,1746141045970,-450.0,0.00035616,11]
[359580000,1746141045979,-470.0,0.00035616,11]
[359580001,1746141045989,-470.0,0.00035616,11]
[359580002,1746141045998,-522.74,0.00035616,11]
[359580003,1746141046009,-450.0,0.00035616,11]
[359580004,1746141046018,-546.26285448,0.00035616,11]
[359580005,1746141046027,-450.0,0.00035616,11]
[359580006,1746141046038,-470.0,0.00035616,11]
[359580007,1746141046049,-450.0,0.00035616,11]
[359580008,1746141046060,-470.0,0.00035616,11]
[359580009,1746141046069,-458.85,0.00035616,11]
[359580010,1746141046079,-450.0,0.00035616,11]
[359580011,1746141046088,-450.0,0.00035616,11]
[359580012,1746141046098,-450.0,0.00035616,11]
[359580013,1746141046108,-450.0,0.00035616,11]
[359580014,1746141046118,-527.49764963,0.00035616,11]
[359580015,1746141046130,-524.63639722,0.00035616,11]
[359580016,1746141046140,-658.3,0.00035616,11]
[359580017,1746141046150,-540.73786731,0.00035616,11]
[359580018,1746141046160,-470.0,0.00035616,11]
[359580019,1746141046170,-540.59207806,0.00035616,11]
[359580020,1746141046179,-500.0,0.00035616,11]
[359580021,1746141046189,-500.0,0.00035616,11]
[359580022,1746141046198,-450.0,0.00035616,11]
[359580023,1746141046208,-470.0,0.00035616,11]
[359580024,1746141046217,-450.0,0.00035616,11]
[359580025,1746141046227,-450.0,0.00035616,11]
[359580026,1746141046236,-450.0,0.00035616,11]
[359580027,1746141046246,-450.0,0.00035616,11]